Cogmind - Beta 13 @@@ ROGUE MODE // 2024.04.01 @ 20:28:28 Player: chexo4 Result: Destroyed by Y-45 Defender with Beam Rifle Performance ------------- Evolutions (1) 500 Regions Visited (3) 600 Robots Destroyed (50) 250 Value Destroyed (1115) 1115 Prototype IDs (3) 60 Alien Tech Used (0) 0 Bonus (86) 86 TOTAL SCORE: 2611 Bonus ------- High Alert Combat Kills 86 Cogmind --------- Core Integrity 0/400 Matter 19/300 Energy 60/100 System Corruption 4% Temperature Cool (28) Movement Rolling (86) Location -9/Materials Parts ------- > --- POWER (1) -------- (None) > --- PROPULSION (4) --- Wheel Armored Wheel Armored Wheel > --- UTILITY (2) ------ Experimental Sensor Array Signal Interpreter > --- WEAPON (2) ------- Assault Cannon Assault Cannon > --- INVENTORY (5) ---- Ion Engine Large Matter Pod (0) Weight Redist. System Improved Terrain Scanner Improved Utility Shielding Peak State ------------ > --- POWER ------------ Light Ion Engine > --- PROPULSION ------- Aluminum Leg Aluminum Leg Aluminum Leg Aluminum Leg > --- UTILITY ---------- Experimental Sensor Array Improved Terrain Scanner > --- WEAPON ----------- Assault Cannon Rocket Launcher > --- INVENTORY -------- Aluminum Leg Heat Sink Assault Rifle [Rating: 22] Favorites ----------- Power Light Ion Engine Engine Light Ion Engine Propulsion Aluminum Leg Leg Aluminum Leg Wheel Wheel Utility Improved Terrain Scanner Device Improved Terrain Scanner Storage Small Storage Unit Processor Signal Interpreter Protection Improved Utility Shielding Weapon Assault Cannon Energy Gun Small Laser Energy Cannon Light EM Pulse Cannon Ballistic Gun Assault Rifle Ballistic Cannon Assault Cannon Launcher Rocket Launcher Build | -11 -10 -10 -9 ------- Run | Yrd Mat Min Mat Slots Evolved 2 | . . . 2 Power . | . . . . Propulsion 2 | . . . 2 Utility . | . . . . Weapon . | . . . . Parts Attached 50 | 6 2 4 38 Power 5 | 1 . . 4 Engine 5 | 1 . . 4 Core . | . . . . Reactor . | . . . . Propulsion 27 | 2 1 1 23 Treads . | . . . . Leg 14 | 2 1 1 10 Wheel 13 | . . . 13 Hover . | . . . . Flight . | . . . . Utility 9 | 1 1 2 5 Device 5 | 1 1 2 1 Storage 2 | . . . 2 Processor 1 | . . . 1 Hackware . | . . . . Protection 1 | . . . 1 Artifact . | . . . . Weapon 9 | 2 . 1 6 Energy Gun 1 | 1 . . . Energy Cannon 1 | . . . 1 Ballistic Gun 1 | 1 . . . Ballistic Cannon 4 | . . . 4 Launcher 2 | . . 1 1 Special Weapon . | . . . . Impact Weapon . | . . . . Slashing Weapon . | . . . . Piercing Weapon . | . . . . Special Melee Weapon . | . . . . Unidentified Prototypes 1 | . . 1 . Corrupted Parts 1 | . . . 1 System Corruption 4 | . . . 4 Parts Lost 11 | . . . 11 Power 2 | . . . 2 Propulsion 5 | . . . 5 Utility 1 | . . . 1 Weapon 3 | . . . 3 Highest Loss Streak 7 | . . . 7 To Critical Strikes . | . . . . Average Slot Usage (%) 89 | . 85 100 86 Engine 10 | . 14 14 8 Leg 21 | . 28 28 17 Wheel 11 | . . . 19 Device 13 | . 14 28 8 Processor 5 | . . . 8 Protection 1 | . . . 1 Energy Gun 3 | . 14 2 . Energy Cannon 3 | . . . 6 Ballistic Gun 5 | . 14 14 . Ballistic Cannon 7 | . . . 12 Launcher 3 | . . 11 1 Naked Turns . | . . . . Heaviest Build 18 | 7 8 11 18 Greatest Support 40 | 20 20 20 40 Greatest Overweight (x) 3 | . . . 3 Average Overweight (x) . | . . . . Largest Inventory Capacity 8 | 5 5 5 8 Average Capacity 5 | 5 5 5 5 Most Carried 5 | 2 5 5 5 Average Carried 2 | . 1 3 2 Final Capacity 5 | 5 5 5 5 Final Carried 5 | . 4 5 5 Class Distribution -------------------- 83% | Mutant 16% | Scavenger-Mutant Dominant Class ---------------- Mutant | -10/Materials Mutant | -10/Mines Mutant | -9/Materials Resources | -11 -10 -10 -9 ----------- Run | Yrd Mat Min Mat Matter Collected 900 | 296 74 6 524 Remotely . | . . . . Salvage Created 1128 | 105 196 31 796 Parts 97 | 9 15 8 65 Haulers Intercepted 1 | . . . 1 Recyclers Shooed 2 | . 1 . 1 Parts Field Recycled . | . . . . Retrieved Matter . | . . . . Parts Self-Destructed . | . . . . Prevented . | . . . . Kills | -11 -10 -10 -9 ------- Run | Yrd Mat Min Mat Combat Hostiles Destroyed 34 | 1 5 3 25 Guns 6 | 1 5 . . Cannons 16 | . . . 16 AOE 12 | . . 3 9 Classes Destroyed 9 | 3 . 2 4 Worker 2 | 1 . . 1 Builder 5 | . . 1 4 Tunneler 5 | 3 . . 2 Hauler 1 | . . . 1 Recycler 1 | . . . 1 Watcher 2 | . . . 2 Swarmer 10 | . . 3 7 Grunt 23 | 1 5 . 17 Sentry 1 | . . . 1 Best Kill Streak 11 | 3 2 3 11 Combat Bots Only 7 | 1 2 3 7 Max Kills in Single Turn 3 | 1 1 3 2 Gunslinging . | . . . . Exploded 3 | . . 3 1 Melee . | . . . . Uniques/NPCs Destroyed . | . . . . Combat | -11 -10 -10 -9 -------- Run | Yrd Mat Min Mat Hostile Shots Fired 248 | 4 26 3 215 Missed 83 | 1 6 1 75 Damage Taken 1870 | 32 214 13 1611 Core 484 | 12 54 6 412 Absorbed by Shields . | . . . . Regen/Repaired (Parts) 110 | . 31 . 79 Core Remaining (%) 83 | 95 . 71 . Volleys Fired 118 | 12 18 6 82 Largest 2 | 2 2 2 2 Hottest 100 | 60 60 53 100 Shots Fired 178 | 24 35 7 112 Gun 65 | 24 35 6 . Cannon 101 | . . . 101 Launcher 12 | . . 1 11 Special . | . . . . Kinetic 110 | 12 18 6 74 Thermal 29 | 12 17 . . Explosive 12 | . . 1 11 Electromagnetic 27 | . . . 27 Robot Hit Streak 8 | 8 8 3 5 Robot Miss Streak 9 | 4 3 1 9 Penetration Max . | . . . . Secondary Targets . | . . . . Shots Hit Robots 92 | 14 21 4 53 Core Hits 73 | 6 9 7 51 Critical Kills 1 | 1 . . . Critical Parts Destroyed . | . . . . Critical Strikes 3 | 1 . . 2 Destroy 1 | 1 . . . Blast 2 | . . . 2 Melee Attacks . | . . . . Impact . | . . . . Slashing . | . . . . Piercing . | . . . . Sneak Attacks . | . . . . Combat Hostiles . | . . . . Follow-up Attacks . | . . . . Damage Inflicted 3008 | 165 282 278 2283 Guns 492 | 165 276 51 . Cannons 1343 | . . . 1343 Explosions 1062 | . . 174 888 Melee . | . . . . Ramming 111 | . 6 53 52 Kinetic 1333 | 100 140 51 1042 Thermal 333 | 65 136 . 132 Explosive 930 | . . 174 756 Electromagnetic 301 | . . . 301 Impact . | . . . . Slashing . | . . . . Piercing . | . . . . Highest Corruption 4 | . . . 4 Average Corruption 4 | . . . 4 Corruption Purged . | . . . . Corruption Blocked . | . . . . Effects 11 | . . . 11 Message Errors 4 | . . . 4 Matter Fused 2 | . . . 2 Heat Flow Errors 1 | . . . 1 Energy Discharges 1 | . . . 1 Data Loss (minor) 1 | . . . 1 Misfires 1 | . . . 1 Alerts 1 | . . . 1 Overload Shots . | . . . . Overflow Damage 78 | . . . 78 Projectiles 60 | . . . 60 Explosions 18 | . . . 18 Melee . | . . . . Knockbacks 6 | . . 1 5 Impact 1 | . . 1 . Kinetic 5 | . . . 5 Secondary . | . . . . Self-Inflicted Damage 10 | . . . 10 Shots . | . . . . Rammed 7 | . . . 7 Targets Rammed 50 | . 5 30 15 Kicked 43 | . 5 30 8 Crushed . | . . . . Highest Temperature 210 | 12 54 . 210 Average Temperature 51 | 8 17 . 60 Received Heat Transfer 909 | 18 120 . 771 Siege Activations . | . . . . Robots Corrupted . | . . . . Combat Hostiles . | . . . . Parts Fried 1 | . . . 1 Impact Corruptions . | . . . . Robots Melted . | . . . . Combat Hostiles . | . . . . Parts Melted . | . . . . Heat Transferred 700 | 150 300 . 250 Parts Sabotaged . | . . . . Parts Stolen . | . . . . Parts Stripped . | . . . . Power Chain Reactions 1 | . . . 1 Alert | -11 -10 -10 -9 ------- Run | Yrd Mat Min Mat Peak Influence 548 | 40 171 110 548 Initial 26 | . 26 . . Average 224 | 13 92 57 365 Maximum Alert Level 2 | . . . 2 Low Security (%) 52 | 100 100 100 12 Level 1 28 | . . . 53 Level 2 18 | . . . 34 Level 3 . | . . . . Level 4 . | . . . . Level 5 . | . . . . High Security . | . . . . Max Security . | . . . . Squads Dispatched 7 | . 3 . 4 Investigation 3 | . 1 . 2 Extermination . | . . . . Reinforcement 4 | . 2 . 2 Assault . | . . . . Garrison . | . . . . Intercept . | . . . . Searches Triggered . | . . . . Construction Impeded 1 | . . . 1 Haulers Reinforced . | . . . . Active Scanning Responses . | . . . . Cargo Convoy Interrupts . | . . . . Stealth | -11 -10 -10 -9 --------- Run | Yrd Mat Min Mat Distress Signals 1 | . . . 1 Communications Jammed . | . . . . Distress Signals . | . . . . Times Spotted 54 | 1 11 3 39 Peak Tracking Total 7 | 1 4 3 7 Tactical Retreats 2 | . . . 2 Traps | -11 -10 -10 -9 ------- Run | Yrd Mat Min Mat Traps Triggered 1 | . 1 . . Indirectly . | . . . . Trap Hack Attempts . | . . . . Triggered . | . . . . Disarmed . | . . . . Reprogrammed . | . . . . Reused . | . . . . Traps Extracted . | . . . . Installed . | . . . . Triggered . | . . . . Machines | -11 -10 -10 -9 ---------- Run | Yrd Mat Min Mat Machines Disabled 6 | . . 1 5 Max in Single Turn 2 | . . 1 2 Machines Repaired . | . . . . Machines Dismantled . | . . . . Machines Sabotaged . | . . . . Overloaded Fab Kills . | . . . . Hacking | -11 -10 -10 -9 --------- Run | Yrd Mat Min Mat Machines Accessed 6 | . 1 . 5 Terminals 4 | . . . 4 Fabricators . | . . . . Repair Stations 2 | . 1 . 1 Recycling Units . | . . . . Scanalyzers . | . . . . Garrison Access . | . . . . Total Hacks 24 | . 3 . 21 Successful 15 | . 2 . 13 Failed 9 | . 1 . 8 Catastrophic 2 | . . . 2 Database Lockouts . | . . . . Manual . | . . . . Terminals 16 | . . . 16 Fabricators . | . . . . Repair Stations 8 | . 3 . 5 Recycling Units . | . . . . Scanalyzers . | . . . . Garrison Access . | . . . . Terminal Hacks 8 | . . . 8 Record 3 | . . . 3 Prototype ID Bank 1 | . . . 1 Security Status 1 | . . . 1 Investigation Status 1 | . . . 1 Reinforcement Status 1 | . . . 1 Assault Status 1 | . . . 1 Fabricator Hacks . | . . . . Repair Station Hacks 7 | . 2 . 5 Scan Component 4 | . 1 . 3 Repair 3 | . 1 . 2 Recycling Unit Hacks . | . . . . Scanalyzer . | . . . . Garrison Access Hacks . | . . . . Unauthorized Hacks . | . . . . Terminals . | . . . . Fabricators . | . . . . Repair Stations . | . . . . Recycling Units . | . . . . Scanalyzers . | . . . . Garrison Access . | . . . . Data Cores Recovered . | . . . . Used . | . . . . Hacking Detections 6 | . 1 . 5 Full Trace Events 5 | . . . 5 Feedback Events . | . . . . Feedback Blocked . | . . . . Robot Schematics Acquired . | . . . . Robots Built . | . . . . Authchips . | . . . . Time . | . . . . Total Robot Build Rating . | . . . . Part Schematics Acquired . | . . . . Parts Built . | . . . . Authchips . | . . . . Time . | . . . . Total Part Build Rating . | . . . . Parts Repaired 3 | . 1 . 2 Time 160 | . 26 . 134 Parts Recycled . | . . . . Recycled Matter . | . . . . Retrieved Matter . | . . . . Retrieved Components . | . . . . Parts Scanalyzed . | . . . . Part Schematics Acquired . | . . . . Parts Damaged . | . . . . Bothacking | -11 -10 -10 -9 ------------ Run | Yrd Mat Min Mat Used RIF Installer . | . . . . Robots Hacked . | . . . . Non-combat . | . . . . Combat . | . . . . Robot Hacks Applied . | . . . . Relay Couplers Released . | . . . . Fabnet Peak Effective % . | . . . . Robots Rewired . | . . . . Allies Hacked . | . . . . Hacks Repelled . | . . . . Allies | -11 -10 -10 -9 -------- Run | Yrd Mat Min Mat Total Allies . | . . . . Largest Group . | . . . . Highest-Rated Group . | . . . . Highest-Rated Ally . | . . . . Total Orders . | . . . . Ally Attacks . | . . . . Total Damage . | . . . . Kills . | . . . . Allies Corrupted . | . . . . Allies Melted . | . . . . Intel | -11 -10 -10 -9 ------- Run | Yrd Mat Min Mat Robot Analysis Total . | . . . . Derelict Logs Recovered 1 | . . 1 . Drone Launches . | . . . . Drone Recoveries . | . . . . Exploration | -11 -10 -10 -9 ------------- Run | Yrd Mat Min Mat Turns Passed 2485 | 243 400 501 1341 Spaces Moved 1869 | 175 278 370 1046 Core 55 | 21 . . 34 Treads . | . . . . Legs 1196 | 154 278 370 394 Wheels 618 | . . . 618 Hover . | . . . . Flight . | . . . . Fastest Speed 50 | 50 120 120 50 Average Speed 107 | 111 120 120 99 Slowest Speed 200 | 120 120 120 200 Overloaded Moves . | . . . . Propulsion Burnouts . | . . . . Robots Hopped . | . . . . Cave-ins Triggered . | . . . . Exploration Rate (%) 31 | 8 24 65 29 Regions Visited 3 Branch Regions 1 Pre-discovered Areas . | . . . . Known Exits Taken . | . . . . Unknown Exits Taken 3 | 1 1 1 . Scrap Searched . | . . . . Spaces Dug . | . . . . Terrain Destroyed 99 | . . 20 79 Melee . | . . . . Projectile 14 | . . . 14 AOE 85 | . . 20 65 Terrain Rammed . | . . . . Walls Destroyed . | . . . . Machines Disabled . | . . . . Actions | -11 -10 -10 -9 --------- Run | Yrd Mat Min Mat Total 2154 | 198 308 412 1236 Wait . | . . . . Move 1866 | 174 277 369 1046 Hop . | . . . . Pick Up 45 | 6 6 2 31 Fast Attach 3 | . . . 3 Attach 21 | 6 1 . 14 Detach 2 | . . . 2 Swap 26 | . 1 4 21 Drop 23 | . . 1 22 Fire 118 | 12 18 6 82 Melee . | . . . . Ram 7 | . . . 7 Kick 43 | . 5 30 8 Crush . | . . . . Escape Stasis . | . . . . Rewire . | . . . . Trap . | . . . . Miscellaneous . | . . . . Route ------- -11/Scrapyard -10/Materials (discovered 2 exits: *Mat / [*Min]) -10/Mines -9/Materials History --------- Turn | Location | Event 2 | -11/Scrapyard | Met Revision 17 149 | -11/Scrapyard | Discovered new exit (range 8) 244 | -11/Scrapyard | Entered Materials 302 | -10/Materials | Build established: Mutant 362 | -10/Materials | Discovered new exit (range 16) 400 | -10/Materials | Discovered new exit (range 12) 473 | -10/Materials | Repaired Aluminum Leg 644 | -10/Materials | Entered Mines 656 | -10/Mines | Met a Derelict bent on vengeance 736 | -10/Mines | Received a Rocket Launcher from a helpful Derelict 1032 | -10/Mines | Learned Materials emergency access door positions 1090 | -10/Mines | Found a damaged Exp. Sensor Array with a note attached 1093 | -10/Mines | Found Prototype Device 1094 | -10/Mines | Identified Exp. Sensor Array 1136 | -10/Mines | Discovered new exit (range 6) 1145 | -10/Mines | Entered Materials 1145 | -9/Materials | Evolved 2 slots: Propulsion x2 1356 | -9/Materials | Destroyed 7 combat bots 1991 | -9/Materials | Repaired Exp. Sensor Array 2046 | -9/Materials | Repaired Aluminum Leg 2128 | -9/Materials | Build established: Scavenger-Mutant 2242 | -9/Materials | Core integrity fell below 50% 2276 | -9/Materials | Core integrity fell below 20% 2304 | -9/Materials | Lost 7 parts (1p4n2w) 2486 | -9/Materials | Destroyed by Y-45 Defender with Beam Rifle Last Messages --------------- Acquired Wheel. U-05 Engineer builds a Wall. Dropped Aluminum Leg. R-06 Scavenger collects Particle Gun. System corrupted: Matter fused (-7). Destroyed Lgt. Ion Engine. Acquired 2 matter. A-02 Transporter destroyed. [Achievement: Loot Pinata] System corrupted: Matter fused (-8). Acquired 33 matter. Acquired Arm. Wheel. Acquired 5 matter. Acquired Weight Redist. System. Slammed into T-07 Excavator. Slammed into K-01 Serf. Destabilizing: Core damaged (-20). =RMC2T